fUSD/lending_fUSD_20240825
["ID","MTS","AMOUNT","RATE_DAILY","PERIOD"]
[335909759,1724583032760,-624.7,0.00010999,2]
[335909760,1724583032769,-624.7,0.00010999,2]
[335909761,1724583032779,-624.7,0.00010999,2]
[335909762,1724583032788,-624.7,0.00010999,2]
[335909763,1724583032797,-624.7,0.00010999,2]
[335909764,1724583032810,-548.80026795,0.00010999,2]
[335909765,1724583032823,-75.89973205,0.00010999,2]
[335909766,1724583032831,-624.7,0.00010999,2]
[335909767,1724583032840,-624.7,0.00010999,2]
[335909768,1724583032849,-624.7,0.00010999,2]
[335909769,1724583032858,-624.7,0.00010999,2]
[335909770,1724583032868,-624.7,0.00010999,2]
[335909771,1724583032877,-624.7,0.00010999,2]
[335909772,1724583032886,-624.9,0.00010999,2]
[335909773,1724583032896,-500.0,0.00010999,2]
[335909774,1724583032905,-500.0,0.00010999,2]
[335909775,1724583032914,-500.0,0.00010999,2]
[335909776,1724583032923,-500.0,0.00010999,2]
[335909777,1724583032933,-500.0,0.00010999,2]
[335909778,1724583032942,-500.0,0.00010999,2]
[335909779,1724583032951,-500.0,0.00010999,2]
[335909780,1724583032960,-500.0,0.00010999,2]
[335909781,1724583032970,-500.0,0.00010999,2]
[335909782,1724583032981,-500.0,0.00010999,2]
[335909783,1724583032990,-549.12,0.00010999,2]
[335909784,1724583033001,-428.03996814,0.00010999,2]
[335909785,1724583033011,-500.0,0.00010999,2]
[335909786,1724583033020,-484.10246449,0.00010999,2]
[335909787,1724583033030,-500.0,0.00010999,2]
[335909788,1724583033039,-500.0,0.00010999,2]
[335909789,1724583033049,-500.0,0.00010999,2]
[335909790,1724583033058,-500.0,0.00010999,2]
[335909791,1724583033067,-500.0,0.00010999,2]
[335909792,1724583033077,-500.0,0.00010999,2]
[335909793,1724583033086,-500.0,0.00010999,2]
[335909794,1724583033096,-500.0,0.00010999,2]
[335909795,1724583033105,-500.0,0.00010999,2]
[335909796,1724583033115,-500.0,0.00010999,2]
[335909797,1724583033125,-500.0,0.00010999,2]
[335909798,1724583033136,-500.0,0.00010999,2]
[335909799,1724583033145,-500.0,0.00010999,2]
[335909800,1724583033155,-500.0,0.00010999,2]
[335909801,1724583033165,-500.0,0.00010999,2]
[335909802,1724583033174,-500.0,0.00010999,2]
[335909803,1724583033183,-619.15,0.00010999,2]
[335909804,1724583033193,-500.0,0.00010999,2]
[335909805,1724583033203,-480.85954832,0.00010999,2]
[335909806,1724583033212,-500.0,0.00010999,2]
[335909807,1724583033221,-500.0,0.00010999,2]
[335909808,1724583033230,-279.64631826,0.00010999,2]
[335909809,1724583033240,-553.57,0.00010999,2]
[335909810,1724583033249,-1000.0,0.00010999,2]
[335909811,1724583033259,-500.0,0.00010999,2]
[335909812,1724583033268,-500.0,0.00010999,2]
[335909813,1724583033278,-500.0,0.00010999,2]
[335909814,1724583033287,-500.0,0.00010999,2]
[335909815,1724583033296,-500.0,0.00010999,2]
[335909816,1724583033305,-615.14904792,0.00010999,2]
[335909817,1724583033315,-500.0,0.00010999,2]
[335909818,1724583033324,-500.0,0.00010999,2]
[335909819,1724583033334,-500.0,0.00010999,2]
[335909820,1724583033343,-500.0,0.00010999,2]
[335909821,1724583033352,-500.0,0.00010999,2]
[335909822,1724583033361,-500.0,0.00010999,2]
[335909823,1724583033371,-500.0,0.00010999,2]
[335909824,1724583033389,-500.0,0.00010999,2]
[335909825,1724583033399,-500.0,0.00010999,2]
[335909826,1724583033408,-500.0,0.00010999,2]
[335909827,1724583033417,-500.0,0.00010999,2]
[335909828,1724583033427,-500.0,0.00010999,2]
[335909829,1724583033436,-500.0,0.00010999,2]
[335909830,1724583033445,-500.0,0.00010999,2]
[335909831,1724583033454,-500.0,0.00010999,2]
[335909832,1724583033464,-500.0,0.00010999,2]
[335909833,1724583033473,-500.0,0.00010999,2]
[335909834,1724583033483,-515.18888247,0.00010999,2]
[335909835,1724583033492,-500.0,0.00010999,2]
[335909836,1724583033501,-500.0,0.00010999,2]
[335909837,1724583033510,-500.0,0.00010999,2]
[335909838,1724583033520,-500.0,0.00010999,2]
[335909839,1724583033529,-252.62252787,0.00010999,2]
[335909840,1724583033538,-558.73,0.00010999,2]
[335909841,1724583033548,-558.73,0.00010999,2]
[335909842,1724583033558,-558.73,0.00010999,2]
[335909843,1724583033568,-558.73,0.00010999,2]
[335909844,1724583033577,-558.73,0.00010999,2]
[335909845,1724583033586,-558.73,0.00010999,2]
[335909846,1724583033595,-558.73,0.00010999,2]
[335909847,1724583033604,-558.73,0.00010999,2]
[335909848,1724583033613,-558.73,0.00010999,2]
[335909849,1724583033624,-558.73,0.00010999,2]
[335909850,1724583033634,-558.73,0.00010999,2]
[335909851,1724583033643,-558.73,0.00010999,2]
[335909852,1724583033652,-558.73,0.00010999,2]
[335909853,1724583033662,-558.73,0.00010999,2]
[335909854,1724583033672,-558.73,0.00010999,2]
[335909855,1724583033681,-558.73,0.00010999,2]
[335909856,1724583033690,-558.73,0.00010999,2]
[335909857,1724583033699,-558.73,0.00010999,2]
[335909858,1724583033708,-558.73,0.00010999,2]
[335909859,1724583033717,-558.73,0.00010999,2]
[335909860,1724583033726,-558.73,0.00010999,2]
[335909861,1724583033736,-558.73,0.00010999,2]
[335909862,1724583033745,-558.73,0.00010999,2]
[335909863,1724583033755,-558.94600817,0.00010999,2]
[335909864,1724583033764,-781.0,0.00010999,2]
[335909865,1724583033774,-781.0,0.00010999,2]
[335909866,1724583033785,-781.0,0.00010999,2]
[335909867,1724583033794,-781.0,0.00010999,2]
[335909868,1724583033806,-781.0,0.00010999,2]
[335909869,1724583033815,-781.0,0.00010999,2]
[335909870,1724583033825,-781.0,0.00010999,2]
[335909871,1724583033835,-781.0,0.00010999,2]
[335909872,1724583033844,-781.0,0.00010999,2]
[335909873,1724583033855,-781.0,0.00010999,2]
[335909874,1724583033864,-781.0,0.00010999,2]
[335909875,1724583033877,-781.0,0.00010999,2]
[335909876,1724583033886,-781.0,0.00010999,2]
[335909877,1724583033896,-781.0,0.00010999,2]
[335909878,1724583033906,-781.0,0.00010999,2]
[335909879,1724583033915,-781.0,0.00010999,2]
[335909880,1724583033925,-781.0,0.00010999,2]
[335909881,1724583033934,-781.0,0.00010999,2]
[335909882,1724583033943,-781.0,0.00010999,2]
[335909883,1724583033952,-781.0,0.00010999,2]
[335909884,1724583033961,-781.0,0.00010999,2]
[335909885,1724583033970,-781.0,0.00010999,2]
[335909886,1724583033980,-781.0,0.00010999,2]
[335909887,1724583033990,-781.06,0.00010999,2]
[335909888,1724583033999,-500.0,0.00010999,2]
[335909889,1724583034009,-500.0,0.00010999,2]
[335909890,1724583034018,-500.0,0.00010999,2]
[335909891,1724583034028,-500.0,0.00010999,2]
[335909892,1724583034037,-500.0,0.00010999,2]
[335909893,1724583034046,-500.0,0.00010999,2]
[335909894,1724583034055,-500.0,0.00010999,2]
[335909895,1724583034065,-573.42821308,0.00010999,2]
[335909896,1724583034074,-515.0,0.00010999,2]
[335909897,1724583034084,-515.0,0.00010999,2]
[335909898,1724583034093,-515.0,0.00010999,2]
[335909899,1724583034102,-515.0,0.00010999,2]
[335909900,1724583034112,-515.0,0.00010999,2]
[335909901,1724583034122,-515.0,0.00010999,2]
[335909902,1724583034132,-515.0,0.00010999,2]
[335909903,1724583034142,-515.0,0.00010999,2]
[335909904,1724583034151,-515.0,0.00010999,2]
[335909905,1724583034161,-515.0,0.00010999,2]
[335909906,1724583034171,-515.0,0.00010999,2]
[335909907,1724583034180,-515.0,0.00010999,2]
[335909908,1724583034190,-515.0,0.00010999,2]
[335909909,1724583034199,-515.0,0.00010999,2]
[335909910,1724583034210,-515.0,0.00010999,2]
[335909911,1724583034219,-515.0,0.00010999,2]
[335909912,1724583034229,-288.62815923,0.00010999,2]
[335909913,1724583034262,-226.37184077,0.00010999,2]
[335909914,1724583034272,-417.58126535,0.00010999,2]
[335909915,1724583034283,-97.41873465,0.00010999,2]
[335909916,1724583034293,-484.65726535,0.00010999,2]
[335909917,1724583034305,-30.34273465,0.00010999,2]
[335909918,1724583034314,-469.65726535,0.00010999,2]
[335909919,1724583034326,-45.34273465,0.00010999,2]
[335909920,1724583034336,-515.0,0.00010999,2]
[335909921,1724583034346,-515.0,0.00010999,2]
[335909922,1724583034356,-515.0,0.00010999,2]
[335909923,1724583034365,-515.05,0.00010999,2]
[335909924,1724583034375,-500.0,0.00010999,2]
[335909925,1724583034385,-500.0,0.00010999,2]
[335909926,1724583034394,-251.50916568,0.00010999,2]
[335909927,1724583034403,-500.0,0.00010999,2]
[335909928,1724583034412,-500.0,0.00010999,2]
[335909929,1724583034422,-580.61196665,0.00010999,2]
[335909930,1724583034431,-823.84,0.00010999,2]
[335909931,1724583034441,-823.84,0.00010999,2]
[335909932,1724583034450,-823.84,0.00010999,2]
[335909933,1724583034459,-823.84,0.00010999,2]
[335909934,1724583034469,-823.84,0.00010999,2]
[335909935,1724583034478,-823.84,0.00010999,2]
[335909936,1724583034488,-823.84,0.00010999,2]
[335909937,1724583034497,-500.0,0.00010999,2]
[335909938,1724583034506,-823.84,0.00010999,2]
[335909939,1724583034516,-823.84,0.00010999,2]
[335909940,1724583034526,-500.0,0.00010999,2]
[335909941,1724583034535,-816.76121382,0.00010999,2]
[335909942,1724583034547,-7.07878618,0.00010999,2]
[335909943,1724583034557,-500.0,0.00010999,2]
[335909944,1724583034567,-500.0,0.00010999,2]
[335909945,1724583034576,-823.84,0.00010999,2]
[335909946,1724583034585,-500.0,0.00010999,2]
[335909947,1724583034595,-823.84,0.00010999,2]
[335909948,1724583034605,-500.0,0.00010999,2]
[335909949,1724583034615,-541.60807986,0.00010999,2]
[335909950,1724583034627,-282.23192014,0.00010999,2]
[335909951,1724583034636,-500.0,0.00010999,2]
[335909952,1724583034646,-823.84,0.00010999,2]
[335909953,1724583034655,-230.32097505,0.00010999,2]
[335909954,1724583034667,-269.67902495,0.00010999,2]
[335909955,1724583034676,-810.14995383,0.00010999,2]
[335909956,1724583034687,-13.69004617,0.00010999,2]
[335909957,1724583034697,-823.84,0.00010999,2]
[335909958,1724583034707,-500.0,0.00010999,2]
[335909959,1724583034716,-823.84,0.00010999,2]
[335909960,1724583034726,-606.46,0.00010999,2]
[335909961,1724583034736,-823.84,0.00010999,2]
[335909962,1724583034746,-823.84,0.00010999,2]
[335909963,1724583034755,-823.84,0.00010999,2]
[335909964,1724583034765,-823.84,0.00010999,2]
[335909965,1724583034775,-823.84,0.00010999,2]
[335909966,1724583034785,-823.84,0.00010999,2]
[335909967,1724583034795,-823.96,0.00010999,2]
[335909968,1724583034806,-610.14,0.00010999,2]
[335909969,1724583034816,-577.75,0.00010999,2]
[335909970,1724583034826,-577.75,0.00010999,2]
[335909971,1724583034835,-577.75,0.00010999,2]
[335909972,1724583034845,-577.75,0.00010999,2]
[335909973,1724583034854,-577.75,0.00010999,2]
[335909974,1724583034864,-577.75,0.00010999,2]
[335909975,1724583034875,-577.75,0.00010999,2]
[335909976,1724583034884,-577.75,0.00010999,2]
[335909977,1724583034893,-577.75,0.00010999,2]
[335909978,1724583034902,-577.75,0.00010999,2]
[335909979,1724583034912,-577.75,0.00010999,2]
[335909980,1724583034922,-691.84,0.00010999,2]
[335909981,1724583034932,-577.75,0.00010999,2]
[335909982,1724583034942,-691.84,0.00010999,2]
[335909983,1724583034952,-577.75,0.00010999,2]
[335909984,1724583034962,-691.84,0.00010999,2]
[335909985,1724583034972,-577.75,0.00010999,2]
[335909986,1724583034981,-691.84,0.00010999,2]
[335909987,1724583034991,-577.75,0.00010999,2]
[335909988,1724583035001,-691.84,0.00010999,2]
[335909989,1724583035011,-577.75,0.00010999,2]
[335909990,1724583035020,-500.0,0.00010999,2]
[335909991,1724583035030,-691.84,0.00010999,2]
[335909992,1724583035039,-577.75,0.00010999,2]
[335909993,1724583035048,-500.0,0.00010999,2]
[335909994,1724583035058,-691.84,0.00010999,2]
[335909995,1724583035067,-500.0,0.00010999,2]
[335909996,1724583035077,-691.84,0.00010999,2]
[335909997,1724583035087,-577.75,0.00010999,2]
[335909998,1724583035097,-500.0,0.00010999,2]
[335909999,1724583035106,-691.84,0.00010999,2]
[335910000,1724583035115,-500.0,0.00010999,2]
[335910001,1724583035126,-691.84,0.00010999,2]
[335910002,1724583035136,-500.0,0.00010999,2]
[335910003,1724583035145,-691.84,0.00010999,2]
[335910004,1724583035156,-577.75,0.00010999,2]
[335910005,1724583035166,-691.84,0.00010999,2]
[335910006,1724583035175,-577.75,0.00010999,2]
[335910007,1724583035185,-691.84,0.00010999,2]
[335910008,1724583035196,-500.0,0.00010999,2]
[335910009,1724583035206,-577.75,0.00010999,2]
[335910010,1724583035216,-691.84,0.00010999,2]
[335910011,1724583035225,-500.0,0.00010999,2]
[335910012,1724583035235,-577.75,0.00010999,2]
[335910013,1724583035245,-691.84,0.00010999,2]
[335910014,1724583035254,-500.0,0.00010999,2]
[335910015,1724583035265,-577.90066404,0.00010999,2]
[335910016,1724583035274,-691.84,0.00010999,2]
[335910017,1724583035283,-691.84,0.00010999,2]
[335910018,1724583035292,-691.84,0.00010999,2]
[335910019,1724583035302,-691.84,0.00010999,2]
[335910020,1724583035311,-691.84,0.00010999,2]
[335910021,1724583035321,-691.84,0.00010999,2]
[335910022,1724583035331,-691.84,0.00010999,2]
[335910023,1724583035340,-691.84,0.00010999,2]
[335910024,1724583035350,-691.89229284,0.00010999,2]
[335910025,1724583035359,-500.0,0.00010999,2]
[335910026,1724583035369,-500.0,0.00010999,2]
[335910027,1724583035378,-500.0,0.00010999,2]
[335910028,1724583035388,-500.0,0.00010999,2]
[335910029,1724583035399,-500.0,0.00010999,2]
[335910030,1724583035408,-500.0,0.00010999,2]
[335910031,1724583035419,-500.0,0.00010999,2]
[335910032,1724583035429,-500.0,0.00010999,2]
[335910033,1724583035587,-500.0,0.00010999,2]
[335910034,1724583035598,-89.78139545,0.00010999,2]
[335910035,1724583035611,-410.21860455,0.00010999,2]
[335910036,1724583035620,-500.0,0.00010999,2]
[335910037,1724583035631,-500.0,0.00010999,2]
[335910038,1724583035641,-500.0,0.00010999,2]
[335910039,1724583035651,-500.0,0.00010999,2]
[335910040,1724583035660,-500.0,0.00010999,2]
[335910041,1724583035669,-481.71,0.00010999,2]
[335910042,1724583035678,-155.11632222,0.00010999,2]
[335910043,1724583035687,-2907.01824407,0.00011,2]
[335910044,1724583035699,-851.45896926,0.00011,2]
[335910045,1724583035719,-165.41,0.0001099,2]
[335910046,1724583035729,-7279.60238986,0.00011,2]
[335910047,1724583035740,-397.92779334,0.00011,2]
[335910048,1724583035752,-479.84771151,0.00011,2]
[335910049,1724583035764,-4869.87206032,0.00011,2]
[335910050,1724583037713,-165.41,0.0001099,2]
[335910051,1724583037724,-165.41,0.0001099,2]
[335910052,1724583037734,-165.41,0.0001099,2]
[335910053,1724583037744,-165.41,0.0001099,2]
[335910054,1724583037754,-165.41,0.0001099,2]
[335910055,1724583037763,-147.11207443,0.0001099,2]
[335910056,1724583037775,-18.29792557,0.0001099,2]
[335910057,1724583037786,-165.41,0.0001099,2]
[335910058,1724583037795,-165.41,0.0001099,2]
[335910059,1724583037808,-49.97130555,0.0001099,2]
[335910060,1724583037825,-115.43869445,0.0001099,2]
[335910061,1724583037834,-165.41,0.0001099,2]
[335910062,1724583037844,-165.41,0.0001099,2]
[335910063,1724583037853,-165.41,0.0001099,2]
[335910064,1724583037863,-165.41,0.0001099,2]
[335910065,1724583037873,-165.41,0.0001099,2]
[335910066,1724583037882,-165.41,0.0001099,2]
[335910067,1724583037891,-165.41,0.0001099,2]
[335910068,1724583037901,-165.41,0.0001099,2]
[335910069,1724583037910,-165.41,0.0001099,2]
[335910070,1724583037919,-165.41,0.0001099,2]
[335910071,1724583037929,-165.41,0.0001099,2]
[335910072,1724583037938,-165.41,0.0001099,2]
[335910073,1724583037947,-165.41,0.0001099,2]
[335910074,1724583037956,-165.41,0.0001099,2]
[335910075,1724583037966,-165.41,0.0001099,2]
[335910076,1724583037975,-165.41,0.0001099,2]
[335910077,1724583037985,-165.41,0.0001099,2]
[335910078,1724583037995,-165.41,0.0001099,2]
[335910079,1724583038004,-7.18130555,0.0001099,2]
[335910080,1724583038016,-158.22869445,0.0001099,2]
[335910081,1724583038025,-165.41,0.0001099,2]
[335910082,1724583038035,-165.41,0.0001099,2]
[335910083,1724583038044,-165.41,0.0001099,2]
[335910084,1724583038054,-165.41,0.0001099,2]
[335910085,1724583038064,-165.41,0.0001099,2]
[335910086,1724583038073,-165.41,0.0001099,2]
[335910087,1724583038083,-165.41,0.0001099,2]
[335910088,1724583038092,-500.0,0.00010999,2]
[335910089,1724583038102,-500.0,0.00010999,2]
[335910090,1724583038111,-500.0,0.00010999,2]
[335910091,1724583038121,-500.0,0.00010999,2]
[335910092,1724583038131,-500.0,0.00010999,2]
[335910093,1724583038140,-500.0,0.00010999,2]
[335910094,1724583038149,-500.0,0.00010999,2]
[335910095,1724583038159,-500.0,0.00010999,2]
[335910096,1724583038168,-500.0,0.00010999,2]
[335910097,1724583038178,-500.0,0.00010999,2]
[335910098,1724583038188,-500.0,0.00010999,2]
[335910099,1724583038198,-500.0,0.00010999,2]
[335910100,1724583038208,-29870.0322448,0.00011,2]
[335910101,1724583038219,-689.29651803,0.00011,2]
[335910102,1724583038237,-165.41,0.0001099,2]
[335910103,1724583038247,-484.83999999,0.00011,2]
[335910104,1724583038258,-902.15263318,0.00011,2]
[335910106,1724583038269,-2709.94494954,0.00011,2]
[335910108,1724583038280,-5197.57096875,0.00011,2]
[335910110,1724583038291,-4583.2606,0.00011,2]
[335910112,1724583038302,-2564.7511365,0.00011,2]
[335910114,1724583038313,-5403.3429348,0.00011,2]
[335910117,1724583038330,-165.41,0.0001099,2]
[335910119,1724583038340,-6937.58562553,0.00011,2]
[335910122,1724583038360,-165.41,0.0001099,2]
[335910124,1724583038370,-5530.6651405,0.00011,2]
[335910127,1724583038381,-720.62291816,0.00011,2]
[335910129,1724583038392,-1479.40258141,0.00011,2]
[335910131,1724583038403,-33322.84927714,0.00011,2]
[335910133,1724583038412,-150.048,0.00011,2]
[335910135,1724583038422,-500.0,0.00011,2]
[335910137,1724583038431,-500.0,0.00011,2]
[335910139,1724583038441,-500.0,0.00011,2]
[335910141,1724583038450,-500.0,0.00011,2]
[335910143,1724583038459,-346.82425858,0.00011,2]
[335910145,1724583038468,-80294.43945179,0.00011,2]
[335910147,1724583038479,-994.47611212,0.00011,2]
[335910149,1724583038490,-23568.01753923,0.00011,2]
[335910150,1724583038502,-1677.23111753,0.00011,2]
[335910152,1724583038514,-3974.5,0.00011,2]
[335910154,1724583038525,-449.59669731,0.00011,2]
[335910156,1724583038536,-726.22550044,0.00011,2]
[335910157,1724583038557,-165.41,0.0001099,2]
[335910158,1724583038567,-1092.23216709,0.00011,2]
[335910159,1724583038578,-845.57482597,0.00011,2]
[335910160,1724583038589,-701.89106013,0.00011,2]
[335910164,1724583039994,-165.41,0.0001099,2]
[335910165,1724583040006,-165.41,0.0001099,2]
[335910166,1724583040017,-165.41,0.0001099,2]
[335910167,1724583040028,-143.37,0.0001099,2]
[335910183,1724583045660,-155.0,0.0001089,2]
[335910185,1724583045673,-22.04,0.0001099,2]
[335910187,1724583045684,-165.41,0.0001099,2]
[335910188,1724583045696,-165.41,0.0001099,2]
[335910190,1724583045707,-165.41,0.0001099,2]
[335910192,1724583045718,-165.41,0.0001099,2]
[335910194,1724583045729,-165.41,0.0001099,2]
[335910195,1724583045740,-165.41,0.0001099,2]
[335910197,1724583045751,-165.41,0.0001099,2]
[335910198,1724583045762,-165.41,0.0001099,2]
[335910199,1724583045773,-165.41,0.0001099,2]
[335910201,1724583045785,-165.41,0.0001099,2]
[335910203,1724583045795,-165.41,0.0001099,2]
[335910205,1724583045807,-165.41,0.0001099,2]
[335910207,1724583045817,-165.41,0.0001099,2]
[335910209,1724583045828,-165.41,0.0001099,2]
[335910211,1724583045838,-165.41,0.0001099,2]
[335910213,1724583045849,-165.41,0.0001099,2]
[335910215,1724583045861,-4837.00101917,0.00011,2]
[335910218,1724583045879,-25096.90873033,0.00011,2]
[335910221,1724583045894,-25653.73937548,0.00011,2]
[335910223,1724583045911,-67370.818044,0.00011,2]
[335910226,1724583045927,-213609.06577852,0.00011,2]
[335910228,1724583045939,-697.64688005,0.00011,2]
[335910231,1724583045953,-317.13482024,0.00011,2]
[335910234,1724583045976,-13785.0527091,0.00011,2]
[335910244,1724583055550,600.0,0.0001,3]
[335910245,1724583075802,500.0,0.0001,2]
[335910246,1724583159721,4000.0,0.00025,60]
[335910247,1724583193424,2000.0,0.00027,120]
[335910248,1724583194763,631.58,0.00024657,120]
[335910249,1724583194960,631.58,0.00025342,120]
[335910250,1724583195240,631.58,0.00026027,120]
[335910251,1724583196791,631.58,0.00026712,120]
[335910252,1724583200757,500.0,0.00024932,120]
[335910253,1724583209705,3000.0,0.00017,90]
[335910254,1724583211451,200.0,0.0002599,120]
[335910255,1724583411183,293.1,8.219e-05,2]
[335910256,1724583460178,162.58,9.976e-05,2]
[335910258,1724583500644,2294.11,9.997e-05,2]
[335910259,1724583529293,539.07,0.0001,2]
[335910260,1724583656579,-1300.0,0.000101,3]
[335910261,1724583656604,-1000.0,0.00010131,2]
[335910262,1724583656631,-2000.0,0.000102,3]
[335910263,1724583656655,-2700.0,0.000103,3]
[335910264,1724583656679,-300.0,0.00010399,2]
[335910265,1724583656702,-3400.0,0.000104,3]
[335910266,1724583656725,-293.1,0.00010478,2]
[335910267,1724583656748,-600.0,0.000105,3]
[335910268,1724583656771,-600.0,0.000106,3]
[335910269,1724583656793,-600.0,0.000107,3]
[335910270,1724583656816,-499.99,0.000107,2]
[335910271,1724583656840,-600.0,0.000108,3]
[335910272,1724583656862,-527.19740296,0.00010852,2]
[335910273,1724583656886,-2343.7515109,0.00010888,2]
[335910274,1724583656908,-11746.70365616,0.0001089,2]
[335910275,1724583656931,-160.44051,0.0001089,2]
[335910276,1724583656953,-156.4272345,0.0001089,2]
[335910277,1724583656976,-155.23007428,0.0001089,2]
[335910278,1724583657004,-155.0,0.0001089,2]
[335910279,1724583657028,-328.72159702,0.0001089,2]
[335910280,1724583657051,-155.0,0.0001089,2]
[335910281,1724583657077,-531.49545144,0.00010899,2]
[335910282,1724583657099,-1400.0,0.000109,3]
[335910283,1724583657120,-189.94,0.000109,2]
[335910284,1724583657144,-500.0,0.00010911,2]
[335910285,1724583657166,-200.0,0.00010959,2]
[335910286,1724583657188,-155.55,0.00010959,2]
[335910287,1724583657212,-152.11,0.0001099,2]
[335910288,1724583657235,-150.0,0.00010991,2]
[335910289,1724583657258,-437.7714222,0.00010992,2]
[335910290,1724583657280,-392.4500396,0.00010992,2]
[335910291,1724583657302,-347.1286571,0.00010992,2]
[335910292,1724583657326,-301.8072745,0.00010992,2]
[335910293,1724583657349,-256.485892,0.00010992,2]
[335910294,1724583657370,-2657.6973092,0.00010992,2]
[335910295,1724583657395,-2379.2223838,0.00010992,2]
[335910296,1724583657417,-2100.7474584,0.00010992,2]
[335910297,1724583657438,-1822.272533,0.00010992,2]
[335910298,1724583657460,-1543.7976076,0.00010992,2]
[335910299,1724583657483,-500.0,0.00010998,2]
[335910300,1724583657505,-500.0,0.00010998,2]
[335910301,1724583657527,-500.0,0.00010998,2]
[335910302,1724583657549,-543.7,0.00010998,2]
[335910303,1724583657572,-500.0,0.00010998,2]
[335910304,1724583657593,-500.0,0.00010998,2]
[335910305,1724583657615,-770.31570348,0.00010999,2]
[335910306,1724583657637,-2268.24341823,0.00010999,2]
[335910307,1724583657658,-500.0,0.00010999,2]
[335910308,1724583657680,-500.0,0.00010999,2]
[335910309,1724583657703,-500.0,0.00010999,2]
[335910310,1724583657725,-500.0,0.00010999,2]
[335910311,1724583657747,-500.0,0.00010999,2]
[335910312,1724583657769,-463.44,0.00010999,2]
[335910313,1724583657791,-500.0,0.00010999,2]
[335910314,1724583657814,-500.0,0.00010999,2]
[335910315,1724583657836,-500.0,0.00010999,2]
[335910316,1724583657859,-500.0,0.00010999,2]
[335910317,1724583657885,-500.0,0.00010999,2]
[335910318,1724583657913,-500.0,0.00010999,2]
[335910319,1724583657935,-500.0,0.00010999,2]
[335910320,1724583657958,-500.0,0.00010999,2]
[335910321,1724583657982,-500.0,0.00010999,2]
[335910322,1724583658008,-500.0,0.00010999,2]
[335910323,1724583658031,-500.0,0.00010999,2]
[335910324,1724583658054,-500.0,0.00010999,2]
[335910325,1724583658080,-500.0,0.00010999,2]
[335910326,1724583658102,-500.0,0.00010999,2]
[335910327,1724583658125,-500.0,0.00010999,2]
[335910328,1724583658147,-500.0,0.00010999,2]
[335910329,1724583658170,-500.0,0.00010999,2]
[335910330,1724583658192,-425.82583626,0.00010999,2]
[335910331,1724583658214,-311.49,0.00010999,2]
[335910332,1724583658237,-500.0,0.00010999,2]
[335910333,1724583658258,-500.0,0.00010999,2]
[335910334,1724583658280,-500.0,0.00010999,2]
[335910335,1724583658302,-500.0,0.00010999,2]
[335910336,1724583658324,-645.52428091,0.00010999,2]
[335910337,1724583658345,-500.0,0.00010999,2]
[335910338,1724583658366,-309.73842195,0.00010999,2]
[335910339,1724583658390,-258.20192451,0.00010999,2]